Cogmind - Beta 13 @@@ ROGUE MODE // 2024.07.27 @ 18:56:52 Player: Nell Result: Destroyed by Y-45 Defender with Heavy Assault Rifle Performance ------------- Evolutions (1) 500 Regions Visited (3) 600 Robots Destroyed (23) 115 Value Destroyed (420) 420 Prototype IDs (1) 20 Alien Tech Used (0) 0 Bonus (0) 0 TOTAL SCORE: 1655 Bonus ------- None Cogmind --------- Core Integrity 0/400 Matter 91/300 Energy 85/100 System Corruption 0% Temperature Cool (0) Movement Rolling (100) Location -9/Storage Parts ------- > --- POWER (1) -------- (None) > --- PROPULSION (3) --- Compact Wheel > --- UTILITY (3) ------ (None) > --- WEAPON (2) ------- (None) > --- INVENTORY (5) ---- Targeting Computer Small Laser Mini Grenade Launcher Precision Rocket Launcher Heavy Hammer Peak State ------------ > --- POWER ------------ Light Ion Engine > --- PROPULSION ------- Aluminum Leg Aluminum Leg > --- UTILITY ---------- Small Storage Unit Improved Terrain Scanner Transport Network Coupler > --- WEAPON ----------- Grenade Launcher Grenade Launcher > --- INVENTORY -------- Light Ion Engine Light Ion Engine Small Laser Assault Rifle Assault Rifle [Rating: 10] Favorites ----------- Power Light Ion Engine Engine Light Ion Engine Propulsion Aluminum Leg Leg Aluminum Leg Wheel Wheel Utility Small Storage Unit Device Improved Terrain Scanner Storage Small Storage Unit Processor Targeting Computer Protection Light Regenerative Plating Weapon Grenade Launcher Energy Gun Small Laser Ballistic Gun Assault Rifle Launcher Grenade Launcher Build | -11 -10 -9 -9 ------- Run | Yrd Mat Mat Sto Slots Evolved 2 | . . 2 . Power . | . . . . Propulsion 1 | . . 1 . Utility 1 | . . 1 . Weapon . | . . . . Parts Attached 18 | 8 3 4 3 Power 2 | 1 . 1 . Engine 2 | 1 . 1 . Core . | . . . . Reactor . | . . . . Propulsion 4 | 2 . . 2 Treads . | . . . . Leg 2 | 2 . . . Wheel 2 | . . . 2 Hover . | . . . . Flight . | . . . . Utility 7 | 2 1 3 1 Device 2 | 1 . 1 . Storage 1 | 1 . . . Processor 3 | . 1 2 . Hackware . | . . . . Protection 1 | . . . 1 Artifact . | . . . . Weapon 5 | 3 2 . . Energy Gun 1 | 1 . . . Energy Cannon . | . . . . Ballistic Gun 2 | 2 . . . Ballistic Cannon . | . . . . Launcher 2 | . 2 . . Special Weapon . | . . . . Impact Weapon . | . . . . Slashing Weapon . | . . . . Piercing Weapon . | . . . . Special Melee Weapon . | . . . . Unidentified Prototypes 1 | . . . 1 Parts Lost 7 | . . 1 6 Power 1 | . . . 1 Propulsion 3 | . . . 3 Utility 1 | . . . 1 Weapon 2 | . . 1 1 Highest Loss Streak 5 | . . 1 5 To Critical Strikes . | . . . . Average Slot Usage (%) 79 | . 89 87 50 Engine 11 | . 14 11 6 Leg 22 | . 28 22 13 Device 2 | . 4 2 . Storage 11 | . 14 11 6 Processor 13 | . 9 19 13 Launcher 16 | . 17 21 6 Naked Turns 23 | . . . 23 Heaviest Build 15 | 13 14 15 11 Greatest Support 20 | 20 20 20 20 Greatest Overweight (x) 2 | . . . 2 Average Overweight (x) . | . . . . Largest Inventory Capacity 8 | 8 8 8 8 Average Capacity 7 | 7 8 8 6 Most Carried 8 | 3 7 8 6 Average Carried 5 | 1 5 5 5 Final Capacity 8 | 8 8 8 5 Final Carried 6 | 3 6 5 5 Class Distribution -------------------- 100% | Mutant Dominant Class ---------------- Mutant | -10/Materials Mutant | -9/Materials Mutant | -9/Storage Resources | -11 -10 -9 -9 ----------- Run | Yrd Mat Mat Sto Matter Collected 514 | 261 141 42 70 Remotely . | . . . . Salvage Created 390 | 29 252 109 . Parts 28 | 7 13 8 . Haulers Intercepted 3 | . 2 1 . Recyclers Shooed 1 | . . 1 . Parts Field Recycled . | . . . . Retrieved Matter . | . . . . Parts Self-Destructed . | . . . . Prevented . | . . . . Kills | -11 -10 -9 -9 ------- Run | Yrd Mat Mat Sto Combat Hostiles Destroyed 11 | . 7 4 . AOE 11 | . 7 4 . Classes Destroyed 8 | 1 6 1 . Worker 3 | . 2 1 . Tunneler 2 | 2 . . . Hauler 3 | . 2 1 . Recycler 1 | . 1 . . Watcher 3 | . 1 2 . Swarmer 3 | . 3 . . Grunt 7 | . 4 3 . Sentry 1 | . . 1 . Best Kill Streak 7 | 1 7 4 . Combat Bots Only 4 | . 4 3 . Max Kills in Single Turn 2 | 1 2 2 . Gunslinging . | . . . . Exploded 2 | . 2 1 . Melee . | . . . . Uniques/NPCs Destroyed . | . . . . Combat | -11 -10 -9 -9 -------- Run | Yrd Mat Mat Sto Hostile Shots Fired 155 | . 12 24 119 Missed 60 | . 7 8 45 Damage Taken 1116 | . 61 230 825 Core 424 | . 21 54 349 Absorbed by Shields . | . . . . Regen/Repaired (Parts) 7 | . . . 7 Core Remaining (%) 95 | 100 91 . . Volleys Fired 32 | 7 17 8 . Largest 2 | 2 2 2 . Hottest 60 | 40 60 60 . Shots Fired 49 | 14 19 16 . Gun 14 | 14 . . . Cannon . | . . . . Launcher 35 | . 19 16 . Special . | . . . . Kinetic 14 | 14 . . . Thermal . | . . . . Explosive 35 | . 19 16 . Electromagnetic . | . . . . Robot Hit Streak 8 | 7 4 8 . Robot Miss Streak 3 | 3 1 1 . Penetration Max . | . . . . Secondary Targets . | . . . . Shots Hit Robots 32 | 8 12 12 . Core Hits 39 | 2 19 18 . Critical Kills . | . . . . Critical Parts Destroyed . | . . . . Critical Strikes . | . . . . Melee Attacks . | . . . . Impact . | . . . . Slashing . | . . . . Piercing . | . . . . Sneak Attacks . | . . . . Combat Hostiles . | . . . . Follow-up Attacks . | . . . . Damage Inflicted 1717 | 101 1008 606 2 Guns 101 | 101 . . . Cannons . | . . . . Explosions 1614 | . 1008 606 . Melee . | . . . . Ramming 2 | . . . 2 Kinetic 101 | 101 . . . Thermal . | . . . . Explosive 1614 | . 1008 606 . Electromagnetic . | . . . . Impact . | . . . . Slashing . | . . . . Piercing . | . . . . Highest Corruption . | . . . . Average Corruption . | . . . . Corruption Purged . | . . . . Corruption Blocked . | . . . . Overload Shots . | . . . . Overflow Damage 4 | . . 4 . Projectiles . | . . . . Explosions 4 | . . 4 . Melee . | . . . . Knockbacks . | . . . . Impact . | . . . . Kinetic . | . . . . Secondary . | . . . . Self-Inflicted Damage 26 | . 7 19 . Shots 3 | . 1 2 . Rammed . | . . . . Targets Rammed 5 | . . . 5 Kicked 5 | . . . 5 Crushed . | . . . . Highest Temperature 13 | . 1 6 13 Average Temperature 4 | . 1 4 8 Received Heat Transfer 435 | . 18 120 297 Siege Activations . | . . . . Robots Corrupted . | . . . . Combat Hostiles . | . . . . Parts Fried . | . . . . Impact Corruptions . | . . . . Robots Melted . | . . . . Combat Hostiles . | . . . . Parts Melted . | . . . . Heat Transferred . | . . . . Parts Sabotaged . | . . . . Parts Stolen . | . . . . Parts Stripped . | . . . . Power Chain Reactions . | . . . . Alert | -11 -10 -9 -9 ------- Run | Yrd Mat Mat Sto Peak Influence 371 | 10 334 371 174 Initial 152 | . 6 141 152 Average 176 | 3 171 281 157 Maximum Alert Level 1 | . 1 1 . Low Security (%) 58 | 100 41 32 100 Level 1 41 | . 58 67 . Level 2 . | . . . . Level 3 . | . . . . Level 4 . | . . . . Level 5 . | . . . . High Security . | . . . . Max Security . | . . . . Squads Dispatched 4 | . 2 1 1 Investigation 2 | . 1 . 1 Extermination . | . . . . Reinforcement 2 | . 1 1 . Assault . | . . . . Garrison . | . . . . Intercept . | . . . . Searches Triggered . | . . . . Construction Impeded . | . . . . Haulers Reinforced . | . . . . Active Scanning Responses . | . . . . Cargo Convoy Interrupts . | . . . . Stealth | -11 -10 -9 -9 --------- Run | Yrd Mat Mat Sto Distress Signals 1 | . . 1 . Communications Jammed . | . . . . Distress Signals . | . . . . Times Spotted 33 | . 11 9 13 Peak Tracking Total 16 | . 5 4 16 Tactical Retreats . | . . . . Traps | -11 -10 -9 -9 ------- Run | Yrd Mat Mat Sto Traps Triggered 2 | . 1 . 1 Indirectly . | . . . . Trap Hack Attempts . | . . . . Triggered . | . . . . Disarmed . | . . . . Reprogrammed . | . . . . Reused . | . . . . Traps Extracted . | . . . . Installed . | . . . . Triggered . | . . . . Machines | -11 -10 -9 -9 ---------- Run | Yrd Mat Mat Sto Machines Disabled 3 | . 1 2 . Max in Single Turn 1 | . 1 1 . Machines Repaired . | . . . . Machines Dismantled . | . . . . Machines Sabotaged . | . . . . Overloaded Fab Kills . | . . . . Hacking | -11 -10 -9 -9 --------- Run | Yrd Mat Mat Sto Machines Accessed 5 | . 3 . 2 Terminals 5 | . 3 . 2 Fabricators . | . . . . Repair Stations . | . . . . Recycling Units . | . . . . Scanalyzers . | . . . . Garrison Access . | . . . . Total Hacks 8 | . 5 . 3 Successful 4 | . 2 . 2 Failed 4 | . 3 . 1 Catastrophic . | . . . . Database Lockouts . | . . . . Manual . | . . . . Terminals 8 | . 5 . 3 Fabricators . | . . . . Repair Stations . | . . . . Recycling Units . | . . . . Scanalyzers . | . . . . Garrison Access . | . . . . Terminal Hacks 4 | . 2 . 2 Open Door 2 | . . . 2 Hauler Manifests 1 | . 1 . . Zone Layout 1 | . 1 . . Fabricator Hacks . | . . . . Repair Station Hacks . | . . . . Recycling Unit Hacks . | . . . . Scanalyzer . | . . . . Garrison Access Hacks . | . . . . Unauthorized Hacks . | . . . . Terminals . | . . . . Fabricators . | . . . . Repair Stations . | . . . . Recycling Units . | . . . . Scanalyzers . | . . . . Garrison Access . | . . . . Data Cores Recovered . | . . . . Used . | . . . . Hacking Detections 3 | . 3 . . Full Trace Events . | . . . . Feedback Events . | . . . . Feedback Blocked . | . . . . Robot Schematics Acquired . | . . . . Robots Built . | . . . . Authchips . | . . . . Time . | . . . . Total Robot Build Rating . | . . . . Part Schematics Acquired . | . . . . Parts Built . | . . . . Authchips . | . . . . Time . | . . . . Total Part Build Rating . | . . . . Parts Repaired . | . . . . Time . | . . . . Parts Recycled . | . . . . Recycled Matter . | . . . . Retrieved Matter . | . . . . Retrieved Components . | . . . . Parts Scanalyzed . | . . . . Part Schematics Acquired . | . . . . Parts Damaged . | . . . . Bothacking | -11 -10 -9 -9 ------------ Run | Yrd Mat Mat Sto Used RIF Installer . | . . . . Robots Hacked . | . . . . Non-combat . | . . . . Combat . | . . . . Robot Hacks Applied . | . . . . Relay Couplers Released . | . . . . Fabnet Peak Effective % . | . . . . Robots Rewired . | . . . . Allies Hacked . | . . . . Hacks Repelled . | . . . . Allies | -11 -10 -9 -9 -------- Run | Yrd Mat Mat Sto Total Allies . | . . . . Largest Group . | . . . . Highest-Rated Group . | . . . . Highest-Rated Ally . | . . . . Total Orders . | . . . . Ally Attacks . | . . . . Total Damage . | . . . . Kills . | . . . . Allies Corrupted . | . . . . Allies Melted . | . . . . Intel | -11 -10 -9 -9 ------- Run | Yrd Mat Mat Sto Robot Analysis Total . | . . . . Derelict Logs Recovered . | . . . . Drone Launches . | . . . . Drone Recoveries . | . . . . Exploration | -11 -10 -9 -9 ------------- Run | Yrd Mat Mat Sto Turns Passed 828 | 116 309 239 164 Spaces Moved 623 | 73 222 168 160 Core 82 | 10 . . 72 Treads . | . . . . Legs 531 | 63 222 168 78 Wheels 10 | . . . 10 Hover . | . . . . Flight . | . . . . Fastest Speed 50 | 50 120 120 50 Average Speed 112 | 110 120 120 95 Slowest Speed 150 | 120 120 120 150 Overloaded Moves . | . . . . Propulsion Burnouts . | . . . . Robots Hopped . | . . . . Cave-ins Triggered . | . . . . Exploration Rate (%) 32 | 3 51 31 43 Regions Visited 3 Branch Regions 1 Pre-discovered Areas . | . . . . Known Exits Taken . | . . . . Unknown Exits Taken 3 | 1 1 1 . Scrap Searched . | . . . . Spaces Dug . | . . . . Terrain Destroyed 177 | . 120 57 . Melee . | . . . . Projectile . | . . . . AOE 177 | . 120 57 . Terrain Rammed . | . . . . Walls Destroyed . | . . . . Machines Disabled . | . . . . Actions | -11 -10 -9 -9 --------- Run | Yrd Mat Mat Sto Total 695 | 90 246 190 169 Wait . | . . . . Move 620 | 72 221 167 160 Hop . | . . . . Pick Up 13 | 3 3 6 1 Fast Attach 10 | 7 . . 3 Attach 3 | . 2 1 . Detach 2 | . 2 . . Swap 5 | 1 1 3 . Drop 5 | . . 5 . Fire 32 | 7 17 8 . Melee . | . . . . Ram . | . . . . Kick 5 | . . . 5 Crush . | . . . . Escape Stasis . | . . . . Rewire . | . . . . Trap . | . . . . Miscellaneous . | . . . . Route ------- -11/Scrapyard -10/Materials -9/Materials -9/Storage History --------- Turn | Location | Event 9 | -11/Scrapyard | Discovered new exit (range 14) 117 | -11/Scrapyard | Entered Materials 243 | -10/Materials | Discovered new exit (range 15) 306 | -10/Materials | Build established: Mutant 426 | -10/Materials | Entered another Materials area 426 | -9/Materials | Evolved 2 slots: Propulsion x1, Utility x1 659 | -9/Materials | Discovered new exit (range 6) 665 | -9/Materials | Entered Storage 768 | -9/Storage | Released all parts (3) 784 | -9/Storage | Core integrity fell below 50% 793 | -9/Storage | Found Prototype Protection 793 | -9/Storage | Identified Lgt. Regenerative Plating 810 | -9/Storage | Core integrity fell below 20% 817 | -9/Storage | Lost 5 parts (1p3n1w) 829 | -9/Storage | Destroyed by Y-45 Defender with Heavy Assault Rifle Last Messages --------------- K-01 Serf collects debris. U-05 Engineer builds a Door. Wheel destroyed. K-01 Serf collects debris. R-06 Scavenger collects Sml. Matter Pod. U-05 Engineer builds a Door. Connecting with Door Terminal... >>Open(Door) Sealed Heavy Doors opened. Acquired Prototype Protection. Identified Lgt. Regenerative Plating. K-01 Serf collects debris. R-06 Scavenger collects Lgt. Ion Engine. Critical hit (Burn: +37). Lgt. Regenerative Plating destroyed. Triggered Alarm Trap. An alarm sounds. ALERT: Alarm triggered, dispatching investigation squad. U-05 Engineer lays Concrete. Acquired Com. Wheel. Map ----- +----------------------------------------------------+ | #?????????????????????????????????????????????? | | ####??????????????????????????????????????????? | | ##T######?????????????????????????????????????? | | + "====#?????????????????????????????????????? | | # #?????????????????????????????????????? | | # "====#?????????????????????????????????????? | | #########?????????????????????????????????????? | | #########?????????????????????????????????????? | | # #?????????????????????????????????????? | | /# #?????????????????????????????????????? | | # #?????????????????????????????????????? | | # #?????????????????????????????????????? | | # #?????????????????????????????????????? | | + #?????????????????????????????????????? | | # #?????????????????????????????????????? | | # #?????????????????????????????????????? | | # #????????????#####???#????????????????? | | # #????????????#"""#?? #????????????????? | | # #???????????##"T"### #????????????????? | | #########???????????# ##???????????????? | | #???????????????????# T#????? #????????? | | #???????????????????# ##?? Y#???????? | | #???????????????????# # =]=#????????? | | #####?????????????#+# ]]= m/ ????????????? | | " #?????????????# ]== #???????????????? | | #T###?????????????# ]@= #???????????????? | | ###???????????????# a #???????????????? | | #???????????####### ##??????????????? | | ############# #?????????????? | | ## """ """ ## #?????????????? | | ## """ """ ## u ########### #?????????????? | | ## """ """ # s a / #??#?????????????? | | ## ss #+#### #????????????????? | | ## # #????? +????????????????? | | ## # #?????? #????????????????? | | / # #???????** #????????????????? | | ## # #????????* #????????????????? | | ############ #????????? #????????????????? | | ##??????????# #?????????? #????????????????? | | ????????????T #?????????? #????????????????? | | ????????????# #???????????###????????????????? | | ????????????# ??????????????????????????????? | | ????????????# ??????????????????????????????? | | ???????????? ??????????????????????????????? | | ????????????##/###?????????????????????????????? | | ?????????????? ????????????????????????????????? | | ??????????????"????????????????????????????????? | | ???????????????????????????????????????????????? | | ???????????????????????????????????????????????? | | ???????????????????????????????????????????????? | +----------------------------------------------------+ Best States ------------- Heat Dissipation 28 Energy Generation 10 Energy Capacity 125 Matter Stores 280 Matter Capacity 300 Sight Range 16 Terrain Scan Range 16 Terrain Scan Density 10 Armor Coverage 150 Evasion (%) 55 Targeting Accuracy 10 Item Schematics ----------------- None Robot Schematics ------------------ None Fabricated ------------ Nothing Alien Tech Used ----------------- None Achievements -------------- None Challenges ------------ None Game ------ Seed InsulationInsulatedReactor Manual? 0 Play Time 00:11:53 Cumulative 10.6 hours Start 2024.07.27 @ 18:46:47 End 2024.07.27 @ 18:56:52 Sessions 1 Manual Loads 0 Difficulty Rogue Special Mode None Game No. 15 Rogue 15 Adventurer 0 Explorer 0 Win Type - Total 0 Types 0/0/0/0/0/0/0/0/0 Lore% 16 Gallery% 20 Achievement% 17 Wizard Run 0 Options --------- Layout 0 ASCII 0 Keyboard 0 Movement Arrows Keybinds 0 Fullscreen 2 Font 24/Smallcaps Map View 76x50 Zoom Use 0% Tactical HUD 0 Map Filters NONE Filters NONE Steam 1 RUN: de72ae9a-c464-43be-a6c0-60c99c30079c